bitfinex-derivatives/quotes_ETHF0:USTF0_20240930
["timestamp","ask_amount","ask_price","bid_price","bid_amount"]
[1727683376854,0.3788,2639.5,2639.2,0.3685]
[1727683377741,0.4037,2639.6,2639.2,0.3685]
[1727683378053,0.37881,2639.5,2639.2,0.3685]
[1727683380448,0.4037,2639.6,2639.2,0.3685]
[1727683380641,0.37881,2639.5,2639.2,0.3685]
[1727683381449,0.37881,2639.5,2639.1,1.46885]
[1727683381643,1.46881,2639.5,2639.1,0.37885]
[1727683382641,1.46881,2639.5,2639.0,3.2078]
[1727683382842,1.46881,2639.5,2639.1,0.37884]
[1727683383039,1.46881,2639.5,2639.2,0.37884]
[1727683385353,0.78249,2639.6,2639.3,0.37882]
[1727683385550,0.4037,2639.6,2639.3,0.37882]
[1727683385740,0.4037,2639.6,2639.1,1.09]
[1727683385741,0.7825,2639.6,2639.4,0.3785]
[1727683387851,0.3788,2639.5,2639.4,0.3785]
[1727683388046,0.3788,2639.5,2639.2,1.17153]
[1727683388251,0.4037,2639.6,2639.2,1.56713]
[1727683388453,0.78249,2639.6,2639.2,1.56713]
[1727683389151,0.4037,2639.6,2639.2,1.56713]
[1727683389352,0.37884,2639.2,2639.1,3.2078]
[1727683389657,1.46884,2639.2,2639.1,3.2078]
[1727683389854,2.61344,2639.2,2638.8,0.76519]
[1727683390455,2.2346,2639.2,2638.8,0.3863]
[1727683390655,2.61345,2639.2,2638.8,0.76519]
[1727683390851,2.2346,2639.2,2638.9,0.37888]
[1727683391553,1.1446,2639.2,2638.9,0.37888]
[1727683391858,1.1446,2639.2,2638.9,0.37887]
[1727683392059,1.1446,2639.2,2638.9,1.46887]
[1727683392451,1.1446,2639.2,2638.9,1.09]
[1727683392651,1.1446,2639.2,2638.9,1.46888]
[1727683393749,1.1446,2639.2,2638.9,1.09]
[1727683393955,1.1446,2639.2,2639.0,0.37887]
[1727683395450,1.1446,2639.2,2638.9,1.09]
[1727683395948,1.1446,2639.2,2639.0,0.37886]
[1727683399865,1.1446,2639.2,2639.1,0.37886]
[1727683400157,3.5866,2639.5,2639.2,0.37883]
[1727683400359,3.6122,2639.5,2639.2,0.37883]
[1727683400562,3.6122,2639.5,2639.3,0.4027]
[1727683400759,0.37881,2639.4,2639.3,0.4027]
[1727683401154,0.7724,2639.4,2639.3,0.4027]
[1727683401349,0.7724,2639.4,2639.3,0.78153]
[1727683401761,0.4044,2639.5,2639.4,0.37881]
[1727683402057,0.7619,2639.7,2639.4,1.09]
[1727683402263,1.1591,2639.7,2639.4,1.09]
[1727683402457,1.1591,2639.7,2639.4,1.4607]
[1727683402662,1.1591,2639.7,2639.6,0.37878]
[1727683402863,1.1591,2639.7,2639.4,2.45464889]
[1727683403057,1.1591,2639.7,2639.5,0.37879]
[1727683403767,1.53787,2639.7,2639.5,0.37879]
[1727683403963,1.1591,2639.7,2639.6,0.37878]
[1727683404156,1.1591,2639.7,2639.5,0.37879]
[1727683404558,1.1591,2639.7,2639.5,0.76589]
[1727683404759,0.7783,2639.7,2639.5,0.76589]
[1727683404960,3.58656,2639.8,2639.6,0.37878]
[1727683405155,3.58656,2639.8,2639.5,1.4771]
[1727683405156,3.2078,2639.8,2639.7,1.46877]
[1727683405361,0.01,2640.1,2639.7,8.20676664]
[1727683405560,0.01,2640.1,2640.0,0.37873]
[1727683405963,0.01,2640.1,2640.0,1.46873]
[1727683406174,0.01,2640.1,2640.0,7.97827658]
[1727683406365,0.01,2640.1,2640.0,2.84770201]
[1727683406670,0.01,2640.1,2640.0,4.26959313]
[1727683407161,0.01,2640.1,2640.0,4.77031177]
[1727683407363,0.01,2640.1,2640.0,4.26947781]
[1727683407566,0.01,2640.1,2640.0,7.47727781]
[1727683407965,0.01,2640.1,2640.0,6.48554]
[1727683408463,0.01,2640.1,2640.0,7.47664347]
[1727683408661,0.01,2640.1,2640.0,6.05517508]
[1727683411071,0.01,2640.1,2640.0,5.67644508]
[1727683411273,0.01,2640.1,2640.0,2.46864508]
[1727683411474,0.01,2640.1,2640.0,1.4771]
[1727683412366,0.01,2640.1,2640.0,0.76583]
[1727683412573,0.01,2640.1,2640.0,0.37873]
[1727683415778,1.47872,2640.1,2639.8,1.75988508]
[1727683415971,1.1832,2640.0,2639.8,1.75988508]
[1727683416168,1.1832,2640.0,2639.7,0.99154508]
[1727683416169,1.46874,2639.9,2639.7,0.99154508]
[1727683416378,0.37876,2639.8,2639.5,0.37879]
[1727683416584,0.37876,2639.8,2639.4,1.75384508]
[1727683416774,0.37876,2639.8,2639.4,0.7623]
[1727683417074,1.09,2639.9,2639.5,0.37879]
[1727683417273,1.46875,2639.9,2639.5,0.37879]
[1727683417673,0.37876,2639.8,2639.4,0.7623]
[1727683417875,0.37876,2639.8,2639.4,0.76231]
[1727683418078,4.391,2640.0,2639.3,0.37882]
[1727683418079,1.09,2639.5,2639.3,0.37882]
[1727683418270,1.09,2639.5,2639.2,0.99154508]
[1727683418271,1.137,2639.4,2639.2,0.37883]
[1727683418773,1.137,2639.4,2639.2,1.46883]
[1727683420176,1.137,2639.4,2639.1,0.99154508]
[1727683420177,1.137,2639.4,2639.3,1.46883]
[1727683420681,1.137,2639.4,2639.3,1.09]
[1727683422771,1.137,2639.4,2639.2,1.46883]
[1727683424282,1.137,2639.4,2639.3,0.37883]
[1727683424783,1.137,2639.4,2639.2,1.09]
[1727683424987,0.7513,2639.4,2639.3,0.37883]
[1727683425181,0.4033,2639.7,2639.5,0.37879]
[1727683425491,1.56027,2639.7,2639.5,1.46879]
[1727683425676,1.09,2639.6,2639.1,0.99154508]
[1727683425881,0.37882,2639.4,2639.1,0.76115]
[1727683426379,0.76673,2639.3,2639.1,0.76115]
[1727683426686,0.76673,2639.3,2639.1,0.3823]
[1727683426886,0.3879,2639.3,2639.1,0.76115]
[1727683427188,0.76673,2639.3,2639.1,0.76115]
[1727683427382,1.13593,2639.3,2639.1,0.76115]
[1727683427588,0.7571,2639.3,2639.1,0.3823]
[1727683427888,0.37884,2639.2,2639.1,0.3823]
[1727683428389,0.74574,2639.2,2639.1,0.3823]
[1727683429279,0.74574,2639.2,2639.0,1.46887]
[1727683429485,0.37887,2639.0,2638.9,3.2078]
[1727683430083,0.37887,2639.0,2638.7,2.46045508]
[1727683430277,1.15258,2638.9,2638.7,2.46045508]
[1727683430787,0.3667,2638.8,2638.7,1.46891]
[1727683431090,1.15258,2638.9,2638.7,6.25005508]
[1727683431279,1.15258,2638.9,2638.7,2.46045508]
[1727683431481,1.15258,2638.9,2638.7,1.46891]
[1727683432689,0.7737,2638.9,2638.7,1.46891]
[1727683432991,1.15259,2638.9,2638.7,1.46891]
[1727683434991,0.7737,2638.9,2638.8,0.3789]
[1727683437286,0.37884,2639.3,2638.8,8.0874]
[1727683437492,0.37884,2639.3,2639.1,1.46885]
[1727683437897,0.37884,2639.3,2639.1,1.09]
[1727683438192,1.1513,2639.4,2639.1,1.09]
[1727683438382,0.37884,2639.2,2639.1,1.09]
[1727683439281,0.37884,2639.2,2639.1,1.46886]
[1727683439485,1.1513,2639.4,2639.1,1.09]
[1727683439697,0.37883,2639.3,2639.1,1.46885]
[1727683440196,0.37884,2639.2,2639.1,1.46885]
[1727683440788,1.1513,2639.4,2639.1,1.46885]
[1727683441295,0.37884,2639.2,2639.1,1.46885]
[1727683441690,0.37884,2639.2,2639.1,1.09]
[1727683441890,0.37884,2639.2,2638.9,0.7488]
[1727683441891,1.09,2639.3,2638.9,0.7488]
[1727683442093,0.37887,2639.0,2638.8,1.46889]
[1727683442397,0.37887,2639.0,2638.5,4.19934508]
[1727683442398,0.7582,2638.9,2638.5,4.19934508]
[1727683442697,0.37892,2638.7,2638.5,3.58673]
[1727683443094,1.49,2638.8,2638.5,3.2078]
[1727683443292,0.37893,2638.6,2638.5,3.2078]
[1727683443594,0.37898,2638.2,2638.1,0.353]
[1727683443897,0.37901,2638.0,2637.7,4.19934508]
[1727683444087,1.1554,2638.1,2637.7,3.2078]
[1727683444290,1.1554,2638.1,2637.8,1.46903]
[1727683444986,1.5344,2638.1,2637.8,1.09]
[1727683445602,1.5344,2638.1,2637.7,5.95684]
[1727683445801,1.1554,2638.1,2637.8,0.37903]
[1727683446503,0.7777,2638.1,2637.7,5.5778]
[1727683447001,0.7777,2638.1,2637.8,0.37904]
[1727683447197,0.7777,2638.1,2637.7,5.5778]
[1727683447701,0.7777,2638.1,2637.8,0.37904]
[1727683447897,0.7777,2638.1,2637.9,0.37902]
[1727683448202,0.3803,2638.1,2637.9,0.37902]
[1727683448394,0.3803,2638.1,2638.0,0.37901]
[1727683449503,0.3803,2638.1,2637.9,1.11591]
[1727683449701,0.78566,2638.4,2638.1,0.37899]
[1727683449998,0.78566,2638.4,2638.0,0.37901]
[1727683449999,0.37897,2638.3,2638.0,0.37901]
[1727683450300,0.37897,2638.3,2637.9,3.1069]
[1727683450608,0.37897,2638.3,2638.0,0.37901]
[1727683452003,0.37897,2638.3,2637.7,3.58685]
[1727683452004,0.37902,2638.0,2637.7,3.58685]
[1727683452198,0.384,2637.9,2637.7,3.2078]
[1727683452400,0.76304,2637.9,2637.6,0.37907]
[1727683452597,0.3778,2637.8,2637.6,0.37907]
[1727683452792,0.7492,2637.8,2637.5,1.1858]
[1727683453100,0.7492,2637.8,2637.6,0.37906]
[1727683453297,0.7492,2637.8,2637.7,0.37906]
[1727683453695,0.7492,2637.8,2637.6,0.37907]
[1727683454698,0.7492,2637.8,2637.7,0.37906]
[1727683455809,10.1182,2637.8,2637.2,0.353]
[1727683456002,10.1182,2637.8,2637.3,0.37911]
[1727683456003,0.37908,2637.6,2637.3,0.37911]
[1727683456902,0.37909,2637.5,2637.3,0.37911]
[1727683457404,0.74781,2637.4,2637.2,0.37913]
[1727683457813,0.3687,2637.4,2637.2,0.37913]
[1727683458107,0.74781,2637.4,2637.2,0.37913]
[1727683458701,0.3687,2637.4,2637.2,0.37913]
[1727683458905,0.74781,2637.4,2637.2,0.37913]
[1727683459098,0.3687,2637.4,2637.0,3.2078]
[1727683459395,0.37912,2637.3,2637.1,0.37914]
[1727683459597,0.76822,2637.3,2637.1,0.37914]
[1727683459806,1.13802,2637.3,2637.1,0.37914]
[1727683460105,1.13802,2637.3,2636.7,0.37919]
[1727683460106,0.37916,2637.1,2636.7,0.37919]
[1727683460405,2.37,2637.2,2636.7,0.37919]
[1727683460406,5.5778,2637.2,2636.7,0.37919]
[1727683460615,0.37916,2637.0,2636.7,0.37919]
[1727683460809,0.3886,2636.9,2636.8,0.37919]
[1727683462314,0.3886,2636.9,2636.7,3.58699]
[1727683462518,0.3886,2636.9,2636.8,0.37919]
[1727683463407,0.3886,2636.9,2636.7,3.2078]
[1727683463604,0.3886,2636.9,2636.7,3.58699]
[1727683463805,0.3886,2636.9,2636.7,3.2078]
[1727683464009,0.3886,2636.9,2636.7,3.58699]
[1727683465412,0.76778,2636.9,2636.7,3.2078]
[1727683465613,0.3886,2636.9,2636.7,3.2078]
[1727683465916,0.3886,2636.9,2636.7,3.587]
[1727683466313,0.3886,2636.9,2636.7,0.3792]
[1727683467007,0.3886,2636.9,2636.6,3.2078]
[1727683467221,0.37916,2637.0,2636.8,0.37918]
[1727683467517,0.37916,2637.0,2636.7,0.37919]
[1727683467818,0.37915,2637.1,2636.8,0.37918]
[1727683468020,0.3777,2637.2,2636.6,5.5778]
[1727683468315,0.37916,2637.0,2636.6,5.5778]
[1727683468516,0.37916,2637.0,2636.8,0.37918]
[1727683468911,0.37916,2637.0,2636.9,0.3682]
[1727683469425,0.37915,2637.1,2636.9,0.74737]
[1727683469606,0.37916,2637.0,2636.9,0.3682]
[1727683474913,0.37916,2637.0,2636.9,0.74737]
[1727683475110,0.37916,2637.0,2636.9,0.3682]
[1727683475617,0.37916,2637.0,2636.9,0.74737]
[1727683475819,0.3777,2637.2,2637.0,0.37915]
[1727683476015,0.75683,2637.2,2637.1,0.37914]
[1727683476417,0.3777,2637.2,2637.1,0.37914]
[1727683477415,0.75684,2637.2,2637.0,0.37914]
[1727683478926,0.3777,2637.2,2636.9,3.576]
[1727683479224,0.37916,2637.0,2636.8,3.14978]
[1727683479723,0.37916,2637.1,2636.8,3.14978]
[1727683479926,0.37916,2637.1,2636.8,2.7706]
[1727683480120,0.37916,2637.1,2636.9,0.37917]
[1727683482618,0.37914,2637.1,2636.9,0.37917]
[1727683482918,0.3777,2637.2,2637.0,0.3983]
[1727683483111,0.37914,2637.1,2637.0,0.3983]
[1727683484228,0.3777,2637.2,2637.0,0.3983]
[1727683484433,0.75684,2637.2,2637.0,0.77745]
[1727683484724,3.2078,2637.6,2637.0,0.3983]
[1727683484725,0.3791,2637.4,2637.0,0.3983]
[1727683485028,3.2078,2637.6,2637.1,0.3723]
[1727683485029,5.33,2637.6,2637.1,0.3723]
[1727683485225,0.37911,2637.4,2637.2,0.77723]
[1727683485416,0.37911,2637.4,2637.2,0.3981]
[1727683486425,5.33,2637.6,2637.2,0.3981]
[1727683486725,0.37911,2637.3,2637.2,0.3981]
[1727683489015,0.37911,2637.3,2637.1,0.3723]
[1727683489016,0.37911,2637.3,2637.0,0.77745]
[1727683489214,0.37911,2637.3,2637.0,1.15705]
[1727683489411,0.37913,2637.2,2637.0,0.7779]
[1727683490016,0.37913,2637.2,2637.0,1.15706]
[1727683490213,0.37912,2637.3,2637.0,1.15706]
[1727683491726,0.37913,2637.2,2637.0,1.15706]
[1727683491932,0.385,2637.2,2637.0,1.15706]
[1727683492627,0.385,2637.2,2637.0,2.14860508]
[1727683493129,0.76413,2637.2,2637.0,2.14860508]
[1727683494820,0.37914,2637.1,2637.0,1.76944508]
[1727683495025,0.18166129,2637.1,2637.0,1.76944508]
[1727683495229,0.56080129,2637.1,2637.0,1.76944508]
[1727683495422,0.56080129,2637.1,2637.0,0.99154508]
[1727683495928,0.18166129,2637.1,2637.0,0.99154508]
[1727683496623,0.55856129,2637.1,2637.0,0.99154508]
[1727683496827,0.93770129,2637.1,2637.0,0.99154508]
[1727683497626,0.55856129,2637.1,2636.9,4.19934508]
[1727683497828,0.37916,2637.0,2636.9,4.19934508]
[1727683499922,0.93771129,2637.1,2636.9,4.19934508]
[1727683500233,0.55856129,2637.1,2637.0,2.79061762]
[1727683500422,0.37914,2637.1,2637.0,2.91248431]
[1727683500823,0.385,2637.2,2637.0,3.29164431]
[1727683501125,0.76413,2637.2,2637.1,0.9938699]
[1727683501325,0.385,2637.2,2637.1,1.79945786]
[1727683501518,0.385,2637.2,2637.1,3.7833015]
[1727683501721,0.37911,2637.4,2637.2,0.37913]
[1727683501928,0.37911,2637.4,2637.3,2.81422289]
[1727683502429,0.78539,2637.5,2637.3,2.19922786]
[1727683502729,0.78539,2637.5,2637.4,2.79397295]
[1727683502922,0.78539,2637.5,2637.4,1.79984685]
[1727683503119,0.4063,2637.5,2637.4,1.79984685]
[1727683503316,3.5834,2637.6,2637.4,2.9119044]
[1727683503525,0.78535,2637.8,2637.7,0.37906]
[1727683503825,6.52532,2638.1,2637.9,0.37902]
[1727683503826,3.58681,2638.1,2637.9,0.37902]
[1727683504036,3.58681,2638.1,2638.0,0.37901]
[1727683504037,3.6141,2638.1,2638.0,0.37901]
[1727683504518,3.6141,2638.1,2638.0,1.37292177]
[1727683504724,0.3756,2638.2,2638.1,0.379]
[1727683505118,0.37896,2638.4,2638.2,0.37897]
[1727683505318,0.78125,2638.5,2638.3,0.37897]
[1727683505725,0.78125,2638.5,2638.2,0.37897]
[1727683505920,0.78125,2638.5,2638.1,0.99391177]
[1727683506122,0.78125,2638.5,2638.0,4.69895755]
[1727683506123,0.78125,2638.5,2638.3,0.37896]
[1727683506525,0.4023,2638.5,2638.2,0.99391177]
[1727683506724,0.37897,2638.3,2638.2,0.99391177]
[1727683506937,0.37897,2638.3,2638.1,0.37899]
[1727683507234,0.37897,2638.4,2638.2,0.37898]
[1727683507430,0.37896,2638.4,2638.2,0.37898]
[1727683507635,0.4023,2638.5,2638.1,0.37899]
[1727683507823,0.37898,2638.3,2638.1,0.37899]
[1727683508837,0.37898,2638.3,2638.1,0.379]
[1727683509037,0.4023,2638.5,2638.1,0.379]
[1727683509337,0.37898,2638.3,2637.8,4.53241177]
[1727683509637,0.37898,2638.3,2638.1,0.37899]
[1727683511034,0.37898,2638.2,2638.1,0.37899]
[1727683511233,0.37898,2638.2,2637.8,4.53241177]
[1727683511536,0.37898,2638.2,2638.0,0.379]
[1727683513438,0.4023,2638.5,2637.8,3.5385]
[1727683513739,0.379,2638.1,2637.8,1.1685]
[1727683514040,0.379,2638.1,2637.9,0.37901]
[1727683514336,0.94743,2638.3,2637.8,1.1685]
[1727683514535,0.37901,2638.1,2637.9,0.37902]
[1727683515039,0.37901,2638.1,2637.8,4.75533]
[1727683515238,0.37898,2638.2,2637.8,1.54754]
[1727683515445,0.37903,2637.9,2637.8,1.1685]
[1727683515631,2.37,2638.0,2637.6,0.3809]
[1727683515828,0.37907,2637.6,2637.5,3.2078]
[1727683516235,2.37,2637.6,2637.1,1.49794]
[1727683516429,0.37911,2637.4,2637.1,1.49794]
[1727683516647,0.3831,2637.5,2637.1,1.1188]
[1727683516840,0.391,2637.4,2637.2,0.37912]
[1727683517043,0.391,2637.4,2637.1,1.1188]
[1727683517345,0.3831,2637.5,2637.3,0.37911]
[1727683517732,0.3831,2637.5,2637.2,3.2078]
[1727683517939,0.391,2637.9,2637.2,3.2078]
[1727683518134,0.37908,2637.6,2637.3,0.37911]
[1727683518442,2.0897,2637.9,2637.3,0.37911]
[1727683518639,0.37908,2637.6,2637.3,0.37911]
[1727683519336,0.37905,2637.8,2637.5,0.37907]
[1727683519539,0.37906,2637.8,2637.5,0.37907]
[1727683519744,1.1421,2637.9,2637.3,0.99391177]
[1727683519942,0.37907,2637.6,2637.3,0.37911]
[1727683520143,0.37906,2637.7,2637.4,0.37909]
[1727683520343,0.37907,2637.6,2637.4,0.37909]
[1727683520540,0.37907,2637.7,2637.4,0.37909]
[1727683520941,0.37905,2637.8,2637.5,0.37908]
[1727683521738,1.1421,2637.9,2637.3,0.99391177]
[1727683521944,0.37906,2637.7,2637.5,0.37908]
[1727683523551,0.37907,2637.6,2637.4,0.37909]
[1727683523937,0.37907,2637.6,2637.1,4.97995755]
[1727683523938,0.37913,2637.2,2637.1,0.99391177]
[1727683524242,3.31782,2637.3,2636.6,1.38921177]
[1727683524439,2.37,2636.9,2636.6,0.3953]
[1727683524639,0.37919,2636.8,2636.6,0.3953]
[1727683524840,2.37,2636.9,2636.6,0.3953]
[1727683525044,0.3792,2636.8,2636.6,0.3953]
[1727683525640,2.37,2636.9,2636.6,0.3953]
[1727683525841,0.37919,2636.8,2636.6,0.3953]
[1727683526036,6.3766,2637.1,2636.6,0.3953]
[1727683526238,0.37918,2636.9,2636.6,0.3953]
[1727683526842,6.3766,2637.1,2636.6,0.3953]
[1727683527048,0.37918,2636.9,2636.6,0.3953]
[1727683527246,0.37918,2636.9,2636.6,0.77451]
[1727683527551,0.37916,2637.0,2636.6,0.3953]
[1727683527753,0.37916,2637.0,2636.6,0.77451]
[1727683528256,6.3766,2637.1,2636.6,0.77451]
[1727683528257,0.7988,2637.1,2636.6,0.3953]
[1727683528545,0.378,2637.3,2636.7,2.37]
[1727683528747,0.378,2637.3,2637.1,0.37914]
[1727683529747,0.378,2637.3,2637.0,1.17315]
[1727683530049,0.378,2637.3,2637.1,0.76014]
[1727683530247,0.75711,2637.3,2637.1,0.381]
[1727683530445,0.378,2637.3,2637.1,0.381]
[1727683530646,0.75379,2637.5,2637.1,0.381]
[1727683530952,0.75379,2637.5,2637.1,0.76013]
[1727683531148,0.37911,2637.4,2637.1,0.76013]
[1727683531344,0.3747,2637.5,2637.1,0.76014]
[1727683531547,0.37909,2637.5,2637.2,0.37913]
[1727683531753,0.3961,2637.6,2637.2,0.37913]
[1727683531952,0.3791,2637.4,2637.2,0.37913]
[1727683533041,0.3961,2637.6,2637.1,5.9588]
[1727683533354,0.37909,2637.5,2637.3,0.37911]
[1727683533557,0.3961,2637.6,2637.1,5.9588]
[1727683533857,0.3961,2637.6,2637.4,0.37909]
[1727683534056,3.5925,2637.7,2637.5,2.37]
[1727683534250,4.78200916,2637.8,2637.5,2.37]
[1727683534453,4.78200916,2637.8,2637.5,2.74908]
[1727683534652,4.40295916,2637.8,2637.5,2.74908]
[1727683534953,4.78200916,2637.8,2637.6,0.37907]
[1727683535251,4.40295916,2637.8,2637.5,3.53418]
[1727683535448,4.40295916,2637.8,2637.6,0.4003]
[1727683535651,4.40295916,2637.8,2637.6,0.77937]
[1727683535652,4.78200916,2637.8,2637.6,0.77937]
[1727683536260,4.78200916,2637.8,2637.6,0.4003]
[1727683537058,4.78200916,2637.8,2637.6,0.77937]
[1727683538364,4.40295916,2637.8,2637.6,0.77937]
[1727683538561,4.40295916,2637.8,2637.7,0.37906]
[1727683538854,1.53383,2638.0,2637.7,0.37906]
[1727683539056,0.37904,2637.9,2637.6,0.77936]
[1727683539262,0.37904,2637.9,2637.7,0.37905]
[1727683539452,0.7697,2638.0,2637.7,0.37905]
[1727683539658,0.37904,2637.8,2637.7,0.37905]
[1727683540652,0.7697,2638.0,2637.9,0.37903]
[1727683540856,0.379,2638.1,2637.7,5.5778]
[1727683541062,0.3738,2638.2,2637.7,5.5778]
[1727683541356,0.75279,2638.2,2638.0,0.37901]
[1727683541761,0.3738,2638.2,2637.7,6.57171177]
[1727683541965,0.379,2638.1,2637.9,0.37902]
[1727683542352,0.7905,2638.3,2638.0,2.37]
[1727683542665,1.16948,2638.3,2638.1,0.3989]
[1727683542963,0.37898,2638.2,2638.1,0.3989]
[1727683544356,0.379,2638.1,2638.0,0.377]
[1727683544763,0.379,2638.1,2637.8,1.14823]
[1727683545164,0.379,2638.1,2637.8,0.7692]
[1727683545365,0.37899,2638.2,2637.9,0.37902]
[1727683545566,0.37898,2638.2,2637.9,0.37902]
[1727683545766,0.3759,2638.1,2637.8,0.3719]
[1727683545966,0.3759,2638.1,2637.9,0.37902]
[1727683546467,0.3759,2638.1,2637.9,0.37903]
[1727683550269,0.7549,2638.1,2637.9,0.37903]
[1727683550457,0.3759,2638.1,2637.9,0.37903]
[1727683551862,0.3759,2638.1,2637.9,0.37902]
[1727683552258,0.3759,2638.1,2637.7,3.2078]
[1727683552460,0.37903,2637.9,2637.7,0.37905]
[1727683552656,0.37903,2637.9,2637.6,1.55486]
[1727683552657,0.3888,2637.8,2637.6,1.55486]
[1727683552861,0.7931,2637.8,2637.6,1.55486]
[1727683553062,0.7931,2637.8,2637.7,0.37906]
[1727683556071,0.3759,2638.1,2637.6,3.5458]
[1727683556375,0.3759,2638.1,2637.9,0.37903]
[1727683557568,0.37899,2638.2,2637.8,2.74903]
[1727683557778,0.76089,2638.2,2637.8,2.74903]
[1727683558073,0.37901,2638.1,2637.8,2.74904]
[1727683558374,0.37901,2638.0,2637.7,0.37905]
[1727683558676,0.3819,2638.2,2637.6,0.99391177]
[1727683558869,0.78484,2637.9,2637.6,0.37907]
[1727683559071,0.3978,2637.8,2637.6,0.37907]
[1727683559966,0.3978,2637.8,2637.5,0.37907]
[1727683560272,0.3703,2637.7,2637.6,0.37907]
[1727683561876,0.3978,2637.8,2637.4,3.36391177]
[1727683562068,0.3978,2637.8,2637.6,0.37906]
[1727683563281,0.3978,2637.8,2637.4,3.36391177]
[1727683563470,0.3978,2637.8,2637.7,0.37906]
[1727683563669,0.4058,2637.9,2637.8,0.37904]
[1727683564073,0.3861,2638.2,2637.7,0.3794]
[1727683564271,1.53839,2638.2,2637.9,0.37902]
[1727683564574,1.53839,2638.2,2638.0,0.37901]
[1727683564773,1.53839,2638.2,2637.9,0.37902]
[1727683565177,0.379,2638.1,2637.9,0.37902]
[1727683565568,1.1594,2638.2,2638.0,0.379]
[1727683565769,0.7588,2638.2,2638.1,0.379]
[1727683566077,3.58676,2638.4,2638.2,0.37897]
[1727683566078,3.2078,2638.4,2638.2,0.37897]
[1727683566375,1.1803,2638.6,2638.2,2.37]
[1727683566575,1.15223,2638.6,2638.3,0.37896]
[1727683566773,0.7733,2638.6,2638.4,0.37895]
[1727683567376,0.7733,2638.6,2638.3,0.7813]
[1727683567568,1.15224,2638.6,2638.3,0.7813]
[1727683567772,1.15224,2638.6,2638.3,1.16027]
[1727683568369,0.7733,2638.6,2638.4,0.37895]
[1727683568668,3.5867,2638.8,2638.4,2.74895]
[1727683568872,0.78589,2638.9,2638.5,0.75613]
[1727683569067,0.37888,2639.0,2638.6,2.37]
[1727683569276,4.37726,2639.1,2638.7,0.3789]
[1727683569578,3.9984,2639.1,2638.9,0.37888]
[1727683569879,3.9984,2639.1,2638.9,0.37887]
[1727683570176,4.37726,2639.1,2638.9,0.368]
[1727683570873,3.9984,2639.1,2638.9,0.368]
[1727683571483,3.9984,2639.1,2638.9,1.14857]
[1727683571878,0.7906,2639.1,2638.9,0.7697]
[1727683572073,0.7906,2639.1,2638.9,1.14858]
[1727683572274,1.16946,2639.1,2638.8,2.74889]
[1727683572575,1.16946,2639.1,2638.6,3.2078]
[1727683572576,0.37887,2639.0,2638.7,0.37891]
[1727683573068,0.7906,2639.1,2638.6,5.5778]
[1727683573275,1.16946,2639.1,2638.8,0.37889]
[1727683575571,1.16946,2639.1,2638.6,2.37]
[1727683575777,1.16946,2639.1,2638.8,0.37889]
[1727683576584,1.16946,2639.1,2638.6,2.37]
[1727683576585,0.7906,2639.1,2639.0,0.37887]
[1727683576877,0.7906,2639.1,2638.6,2.37]
[1727683576878,0.7906,2639.1,2638.9,0.37888]
[1727683577274,1.16946,2639.1,2638.9,0.37888]
[1727683577782,1.16946,2639.1,2638.8,0.37889]
[1727683577981,1.16946,2639.1,2638.6,2.37]
[1727683578183,1.16946,2639.1,2638.8,0.37889]
[1727683578381,0.7906,2639.1,2638.9,0.37887]
[1727683578584,1.16946,2639.1,2638.9,0.37887]
[1727683578788,0.7906,2639.1,2639.0,0.37887]
[1727683578983,0.7906,2639.1,2638.9,0.37887]
[1727683579284,0.4007,2639.1,2639.0,0.37887]
[1727683580183,0.4007,2639.1,2638.9,0.8052]
[1727683580477,0.4007,2639.1,2639.0,0.37887]
[1727683581786,0.3919,2639.3,2638.9,0.3984]
[1727683581985,0.3919,2639.3,2639.1,0.37885]
[1727683582177,0.77073,2639.3,2639.1,0.37885]
[1727683582981,0.77073,2639.3,2639.0,0.37886]
[1727683584189,0.3919,2639.3,2638.9,0.3984]
[1727683584786,0.3919,2639.3,2639.1,0.37884]
[1727683584985,0.3919,2639.3,2639.2,0.37884]
[1727683585184,0.3919,2639.3,2638.9,0.3984]
[1727683585185,0.3919,2639.3,2639.1,0.37885]
[1727683585381,0.77074,2639.3,2638.9,0.3984]
[1727683585587,0.77074,2639.3,2639.1,0.37885]
[1727683586085,0.77074,2639.3,2638.9,0.3984]
[1727683586889,0.77074,2639.3,2639.1,0.37885]
[1727683590796,0.3919,2639.3,2639.2,0.37884]
[1727683591596,0.7626,2639.3,2639.2,0.37884]
[1727683591795,4.5514,2639.3,2639.2,0.37884]
[1727683592389,4.93023,2639.3,2639.1,0.37885]
[1727683592698,1.14143,2639.3,2639.1,0.37885]
[1727683593798,0.7626,2639.3,2639.2,0.37884]
[1727683593999,0.7626,2639.3,2639.0,1.8756]
[1727683594502,0.7626,2639.3,2639.1,0.37885]
[1727683594801,0.7626,2639.3,2639.2,0.37884]
[1727683594997,0.7626,2639.3,2639.1,0.37884]
[1727683595193,0.7626,2639.3,2639.1,0.37885]
[1727683595396,1.14143,2639.3,2639.0,1.46886]
[1727683595593,0.7626,2639.3,2639.2,0.37884]
[1727683595792,0.7626,2639.3,2639.0,1.09]
[1727683595793,1.14143,2639.3,2639.1,0.37885]
[1727683595993,0.7626,2639.3,2639.1,0.37885]
[1727683597804,0.7626,2639.3,2638.7,3.2078]
[1727683598008,0.37885,2639.2,2638.9,0.37888]